[Event "Live Chess"]
[Site "Chess.com"]
[Date "2024.06.01"]
[Round "-"]
[White "lyricalschemes"]
[Black "ShanthamGrarks"]
[Result "1-0"]
[WhiteElo "2406"]
[BlackElo "1787"]
[TimeControl "300"]
[EndTime "14:37:25 PDT"]
[Termination "lyricalschemes won by resignation"]

1. e3 {[%clk 0:04:58.5]} 1... d6 {[%clk 0:04:50.8]} 2. e4 {[%clk 0:04:55.8]}
2... e5 {[%clk 0:04:48.8]} 3. Nf3 {[%clk 0:04:48.1]} 3... f5 {[%clk 0:04:42.9]}
4. exf5 {[%clk 0:04:45.6]} 4... Nf6 {[%clk 0:04:42.3]} 5. d4 {[%clk 0:04:42.8]}
5... Bxf5 {[%clk 0:04:41.6]} 6. dxe5 {[%clk 0:04:41.6]} 6... Ng4 {[%clk
0:04:39.8]} 7. Nc3 {[%clk 0:04:37.2]} 7... Nc6 {[%clk 0:04:35.2]} 8. Bb5 {[%clk
0:04:35.3]} 8... Be7 {[%clk 0:04:29.9]} 9. exd6 {[%clk 0:04:32.6]} 9... Bxd6
{[%clk 0:04:26.3]} 10. Qe2+ {[%clk 0:04:30.4]} 10... Kf7 {[%clk 0:04:25.3]} 11.
Bc4+ {[%clk 0:04:24.3]} 11... Kg6 {[%clk 0:04:17.4]} 12. O-O {[%clk 0:04:15.9]}
12... Re8 {[%clk 0:04:15.2]} 13. Qd1 {[%clk 0:04:09.7]} 13... Nce5 {[%clk
0:04:11]} 14. Nxe5+ {[%clk 0:03:44.6]} 14... Rxe5 {[%clk 0:04:04.4]} 15. Bd3
{[%clk 0:03:39.8]} 15... Nxh2 {[%clk 0:03:58]} 16. Bf4 {[%clk 0:03:26.8]} 16...
Qh4 {[%clk 0:03:15.7]} 17. Bxh2 {[%clk 0:03:19.3]} 17... Bxd3 {[%clk 0:02:55.2]}
18. Qxd3+ {[%clk 0:03:17.1]} 18... Rf5 {[%clk 0:02:53.7]} 19. Bxd6 {[%clk
0:03:10.8]} 19... cxd6 {[%clk 0:02:51.1]} 20. Qg3+ {[%clk 0:03:05.6]} 20... Qg5
{[%clk 0:02:44.7]} 21. Qxg5+ {[%clk 0:03:02.6]} 21... Rxg5 {[%clk 0:02:44.6]}
22. Ne4 {[%clk 0:03:00.3]} 22... Rb5 {[%clk 0:02:29]} 23. b3 {[%clk 0:02:53.9]}
23... d5 {[%clk 0:02:27.7]} 24. Ng3 {[%clk 0:02:52.8]} 24... Rc8 {[%clk
0:02:25]} 25. Rac1 {[%clk 0:02:50.2]} 25... Ra5 {[%clk 0:02:22.9]} 26. a4 {[%clk
0:02:48.2]} 26... Rac5 {[%clk 0:02:22]} 27. Rfd1 {[%clk 0:02:40.9]} 27... Rxc2
{[%clk 0:02:20.4]} 28. Rxc2 {[%clk 0:02:40.5]} 28... Rxc2 {[%clk 0:02:19.2]} 29.
Rd4 {[%clk 0:02:40.4]} 29... Rc5 {[%clk 0:02:13.6]} 30. b4 {[%clk 0:02:38.1]}
30... Rc4 {[%clk 0:02:11.6]} 31. Rxc4 {[%clk 0:02:33.4]} 31... dxc4 {[%clk
0:02:09.8]} 32. Kf1 {[%clk 0:02:32.4]} 32... Kf6 {[%clk 0:02:06.9]} 33. Ke2
{[%clk 0:02:31.3]} 33... Ke5 {[%clk 0:02:06.4]} 34. Kd2 {[%clk 0:02:30.6]} 34...
Kd4 {[%clk 0:02:05.5]} 35. Nf5+ {[%clk 0:02:29.4]} 35... Kd5 {[%clk 0:02:01.5]}
36. Nxg7 {[%clk 0:02:26.7]} 36... a6 {[%clk 0:02:01]} 37. Kc3 {[%clk 0:02:25.3]}
37... b5 {[%clk 0:02:00.1]} 38. axb5 {[%clk 0:02:23.4]} 38... axb5 {[%clk
0:01:58.5]} 39. Nf5 {[%clk 0:02:23.1]} 39... Ke5 {[%clk 0:01:54.7]} 40. Ne3
{[%clk 0:02:21.7]} 40... Ke4 {[%clk 0:01:53.3]} 41. Nxc4 {[%clk 0:02:20.6]}
41... bxc4 {[%clk 0:01:52.5]} 42. Kxc4 {[%clk 0:02:20.5]} 42... h5 {[%clk
0:01:51.1]} 43. b5 {[%clk 0:02:19.9]} 43... h4 {[%clk 0:01:51]} 44. b6 {[%clk
0:02:19.5]} 44... Kf4 {[%clk 0:01:49.2]} 45. b7 {[%clk 0:02:18.6]} 45... Kg4
{[%clk 0:01:49.1]} 46. b8=Q {[%clk 0:02:17.8]} 46... h3 {[%clk 0:01:49]} 47.
Qg3+ {[%clk 0:02:16.5]} 1-0

[Event "Live Chess"]
[Site "Chess.com"]
[Date "2024.06.01"]
[Round "-"]
[White "Zhevzh1k7"]
[Black "crais6"]
[Result "0-1"]
[WhiteElo "1104"]
[BlackElo "1620"]
[TimeControl "300"]
[EndTime "14:37:35 PDT"]
[Termination "crais6 won by resignation"]

1. e4 {[%clk 0:04:55.2]} 1... c5 {[%clk 0:04:55.9]} 2. Nf3 {[%clk 0:04:51.7]}
2... Nc6 {[%clk 0:04:52.8]} 3. d4 {[%clk 0:04:50.6]} 3... cxd4 {[%clk 0:04:51]}
4. Nxd4 {[%clk 0:04:48.4]} 4... e5 {[%clk 0:04:49.1]} 5. Nxc6 {[%clk 0:04:45.1]}
5... bxc6 {[%clk 0:04:46.1]} 6. Nc3 {[%clk 0:04:43]} 6... Bb4 {[%clk 0:04:41.6]}
7. Bd2 {[%clk 0:04:39.7]} 7... Nf6 {[%clk 0:04:39.9]} 8. f3 {[%clk 0:04:33.8]}
8... Kf8 {[%clk 0:04:35]} 9. a3 {[%clk 0:04:32.9]} 9... Ba5 {[%clk 0:04:30.5]}
10. Bc4 {[%clk 0:04:27.1]} 10... h6 {[%clk 0:04:28.8]} 11. O-O {[%clk
0:04:23.6]} 11... d5 {[%clk 0:04:19.9]} 12. exd5 {[%clk 0:04:19.2]} 12... cxd5
{[%clk 0:04:17.6]} 13. Nxd5 {[%clk 0:04:12.9]} 13... Nxd5 {[%clk 0:04:11.6]} 14.
Bxa5 {[%clk 0:04:06.9]} 14... Qxa5 {[%clk 0:04:06.2]} 15. Qxd5 {[%clk
0:04:04.2]} 15... Qxd5 {[%clk 0:04:01.4]} 16. Bxd5 {[%clk 0:04:03.1]} 16... Rb8
{[%clk 0:04:00.2]} 17. b4 {[%clk 0:03:55.2]} 17... Ke7 {[%clk 0:03:57.5]} 18. c4
{[%clk 0:03:53.4]} 18... Rd8 {[%clk 0:03:52.5]} 19. Rfe1 {[%clk 0:03:51]} 19...
f6 {[%clk 0:03:50]} 20. f4 {[%clk 0:03:48.1]} 20... Kd6 {[%clk 0:03:41.7]} 21.
fxe5+ {[%clk 0:03:43.3]} 21... fxe5 {[%clk 0:03:38.3]} 22. Re3 {[%clk
0:03:39.4]} 22... Bf5 {[%clk 0:03:28.8]} 23. Rae1 {[%clk 0:03:34.4]} 23... Re8
{[%clk 0:03:25.7]} 24. Bf7 {[%clk 0:03:24.4]} 24... Re7 {[%clk 0:03:22.9]} 25.
c5+ {[%clk 0:03:22.8]} 25... Kc7 {[%clk 0:03:13.5]} 26. Bc4 {[%clk 0:03:08.7]}
26... e4 {[%clk 0:03:07.7]} 27. Bd5 {[%clk 0:03:03.8]} 27... Rd8 {[%clk
0:03:01.6]} 28. Bxe4 {[%clk 0:02:59.9]} 28... Rde8 {[%clk 0:02:58.5]} 29. Bxf5
{[%clk 0:02:36.7]} 29... Rxe3 {[%clk 0:02:55.3]} 30. Rxe3 {[%clk 0:02:35.5]}
30... Rxe3 {[%clk 0:02:53.8]} 31. a4 {[%clk 0:02:33.1]} 31... Re5 {[%clk
0:02:47.7]} 32. Bd3 {[%clk 0:02:29.1]} 32... a5 {[%clk 0:02:43.3]} 33. b5 {[%clk
0:02:20.7]} 33... Rxc5 {[%clk 0:02:40.7]} 34. Kf2 {[%clk 0:02:16.6]} 34... Rc3
{[%clk 0:02:34.3]} 35. Ke3 {[%clk 0:02:15.2]} 35... Ra3 {[%clk 0:02:29.8]} 36.
Kd4 {[%clk 0:02:10.6]} 36... Rxa4+ {[%clk 0:02:27.7]} 37. Bc4 {[%clk 0:02:09.7]}
37... Rb4 {[%clk 0:02:24.2]} 38. Kc5 {[%clk 0:02:07.2]} 38... Rb2 {[%clk
0:02:15.5]} 39. Bd3 {[%clk 0:01:58]} 39... a4 {[%clk 0:02:12.5]} 40. Be4 {[%clk
0:01:53.9]} 40... a3 {[%clk 0:02:09.7]} 41. Kc4 {[%clk 0:01:49.2]} 41... a2
{[%clk 0:02:07.6]} 42. Kc3 {[%clk 0:01:47.3]} 42... a1=Q {[%clk 0:02:04.2]} 0-1

[Event "Live Chess"]
[Site "Chess.com"]
[Date "2024.06.01"]
[Round "-"]
[White "Dhaydon19"]
[Black "wadsy27"]
[Result "1-0"]
[WhiteElo "2683"]
[BlackElo "2540"]
[TimeControl "300"]
[EndTime "14:37:46 PDT"]
[Termination "Dhaydon19 won by resignation"]

1. d3 {[%clk 0:04:58.2]} 1... d5 {[%clk 0:04:58.8]} 2. Nf3 {[%clk 0:04:58]} 2...
Nf6 {[%clk 0:04:58.1]} 3. g3 {[%clk 0:04:57.8]} 3... g6 {[%clk 0:04:57.6]} 4.
Bg2 {[%clk 0:04:57.5]} 4... Bg7 {[%clk 0:04:57.2]} 5. O-O {[%clk 0:04:57.2]}
5... O-O {[%clk 0:04:57]} 6. c3 {[%clk 0:04:56.9]} 6... c5 {[%clk 0:04:56.1]} 7.
Nbd2 {[%clk 0:04:55.7]} 7... Nc6 {[%clk 0:04:55.2]} 8. Qc2 {[%clk 0:04:55.4]}
8... e5 {[%clk 0:04:53.6]} 9. e4 {[%clk 0:04:54.9]} 9... d4 {[%clk 0:04:51.3]}
10. Nb3 {[%clk 0:04:53.5]} 10... Qe7 {[%clk 0:04:46.3]} 11. a3 {[%clk
0:04:49.3]} 11... Rd8 {[%clk 0:04:40.9]} 12. cxd4 {[%clk 0:04:48.3]} 12... cxd4
{[%clk 0:04:40.3]} 13. Bd2 {[%clk 0:04:45.5]} 13... Bf8 {[%clk 0:04:35.7]} 14.
Rac1 {[%clk 0:04:43]} 14... Bg4 {[%clk 0:04:22.4]} 15. Na5 {[%clk 0:04:39.1]}
15... Rac8 {[%clk 0:04:15.6]} 16. Nxc6 {[%clk 0:04:36.1]} 16... Rxc6 {[%clk
0:04:14.9]} 17. Qb1 {[%clk 0:04:35.7]} 17... Rdc8 {[%clk 0:04:06.6]} 18. Rxc6
{[%clk 0:04:34.4]} 18... Rxc6 {[%clk 0:04:05.8]} 19. Rc1 {[%clk 0:04:34.1]}
19... Bxf3 {[%clk 0:04:01]} 20. Bxf3 {[%clk 0:04:32.7]} 20... Qc7 {[%clk
0:04:00.2]} 21. Rxc6 {[%clk 0:04:31.3]} 21... Qxc6 {[%clk 0:04:00.1]} 22. Bd1
{[%clk 0:04:30.9]} 22... Kg7 {[%clk 0:03:54]} 23. b4 {[%clk 0:04:28.8]} 23... b5
{[%clk 0:03:51.7]} 24. Kg2 {[%clk 0:04:26.2]} 24... Nd7 {[%clk 0:03:50.4]} 25.
Bb3 {[%clk 0:04:24.6]} 25... Nb6 {[%clk 0:03:48.2]} 26. f4 {[%clk 0:04:19.3]}
26... Bd6 {[%clk 0:03:37.8]} 27. Qf1 {[%clk 0:04:07.2]} 27... f5 {[%clk
0:03:24.3]} 28. fxe5 {[%clk 0:04:03.1]} 28... Bxe5 {[%clk 0:03:23.7]} 29. Bf4
{[%clk 0:03:39.1]} 29... Bxf4 {[%clk 0:03:10.1]} 30. Qxf4 {[%clk 0:03:37.1]}
30... Nd7 {[%clk 0:03:09.8]} 31. Kh3 {[%clk 0:03:29.7]} 31... fxe4 {[%clk
0:03:02.2]} 32. Qf7+ {[%clk 0:03:24.8]} 32... Kh6 {[%clk 0:03:01.7]} 33. Be6
{[%clk 0:03:22.8]} 33... e3 {[%clk 0:02:33.9]} 34. Bxd7 {[%clk 0:03:20.2]} 34...
Qd6 {[%clk 0:02:33.2]} 35. Bg4 {[%clk 0:03:17]} 35... a6 {[%clk 0:02:30.4]} 36.
Kg2 {[%clk 0:03:13.3]} 36... Qc6+ {[%clk 0:02:26.2]} 37. Bf3 {[%clk 0:03:11.7]}
37... Qc2+ {[%clk 0:02:23.6]} 38. Kh3 {[%clk 0:03:11.1]} 38... Qc8+ {[%clk
0:02:19]} 39. g4 {[%clk 0:03:09.2]} 39... Qb8 {[%clk 0:02:08.9]} 40. Qe7 {[%clk
0:03:01.9]} 40... Qf4 {[%clk 0:02:03.3]} 41. Kg2 {[%clk 0:03:00.9]} 41... g5
{[%clk 0:01:43.7]} 42. Qe4 {[%clk 0:02:25.7]} 42... Qf7 {[%clk 0:01:22.4]} 43.
Qc6+ {[%clk 0:02:22.7]} 43... Kg7 {[%clk 0:01:21.9]} 44. Qd6 {[%clk 0:02:17.9]}
44... Qa2+ {[%clk 0:01:19]} 45. Kh3 {[%clk 0:02:16]} 45... Qf2 {[%clk
0:01:16.1]} 46. Qxd4+ {[%clk 0:02:14.8]} 46... Kf8 {[%clk 0:01:07.2]} 47. Qf6+
{[%clk 0:02:12.6]} 1-0

[Event "Live Chess"]
[Site "Chess.com"]
[Date "2024.06.01"]
[Round "-"]
[White "JanMur7"]
[Black "DylanMeyer1"]
[Result "1-0"]
[WhiteElo "2291"]
[BlackElo "1708"]
[TimeControl "300"]
[EndTime "14:37:47 PDT"]
[Termination "JanMur7 won by resignation"]

1. c4 {[%clk 0:04:58.6]} 1... c5 {[%clk 0:04:42.8]} 2. Nc3 {[%clk 0:04:56]} 2...
Nf6 {[%clk 0:04:42]} 3. g3 {[%clk 0:04:55.5]} 3... e6 {[%clk 0:04:41.1]} 4. Bg2
{[%clk 0:04:54.4]} 4... Be7 {[%clk 0:04:40.3]} 5. Nf3 {[%clk 0:04:53.1]} 5...
O-O {[%clk 0:04:39.7]} 6. O-O {[%clk 0:04:52.3]} 6... d5 {[%clk 0:04:39.3]} 7.
cxd5 {[%clk 0:04:51.7]} 7... exd5 {[%clk 0:04:39.1]} 8. d4 {[%clk 0:04:51.4]}
8... cxd4 {[%clk 0:04:37.6]} 9. Nxd4 {[%clk 0:04:51.3]} 9... Nc6 {[%clk
0:04:36.3]} 10. Be3 {[%clk 0:04:50.3]} 10... Be6 {[%clk 0:04:31.6]} 11. Nb3
{[%clk 0:04:44.1]} 11... a6 {[%clk 0:04:28.2]} 12. a4 {[%clk 0:04:40.9]} 12...
Na5 {[%clk 0:04:19]} 13. Nxa5 {[%clk 0:04:36.8]} 13... Qxa5 {[%clk 0:04:18.9]}
14. Bd4 {[%clk 0:04:35.3]} 14... Rac8 {[%clk 0:04:12]} 15. e3 {[%clk 0:04:33.5]}
15... Rfd8 {[%clk 0:04:06.6]} 16. Qb3 {[%clk 0:04:31]} 16... Rd7 {[%clk
0:03:07.5]} 17. Bb6 {[%clk 0:04:22]} 17... Qb4 {[%clk 0:03:04.8]} 18. Qxb4
{[%clk 0:04:16.8]} 18... Bxb4 {[%clk 0:03:03.6]} 19. Rac1 {[%clk 0:04:13.4]}
19... Bxc3 {[%clk 0:02:28.7]} 20. Rxc3 {[%clk 0:04:13.3]} 20... Rxc3 {[%clk
0:02:26.9]} 21. bxc3 {[%clk 0:04:13.2]} 21... Ne4 {[%clk 0:02:14]} 22. Bd4
{[%clk 0:04:11]} 22... f6 {[%clk 0:01:45.5]} 23. Rb1 {[%clk 0:04:04]} 23... Kf7
{[%clk 0:01:43]} 24. Rb6 {[%clk 0:04:01.8]} 24... Rc7 {[%clk 0:01:35.5]} 25. h4
{[%clk 0:03:56.6]} 25... Nxc3 {[%clk 0:01:31.4]} 26. Bxc3 {[%clk 0:03:55.1]}
26... Rxc3 {[%clk 0:01:21.8]} 27. Rxb7+ {[%clk 0:03:54.5]} 27... Kg6 {[%clk
0:01:15.8]} 28. Rb6 {[%clk 0:03:53.6]} 28... Bc8 {[%clk 0:01:10]} 29. Bxd5
{[%clk 0:03:50.7]} 29... h5 {[%clk 0:01:03.5]} 30. Rc6 {[%clk 0:03:46.4]} 30...
Rxc6 {[%clk 0:01:02]} 31. Bxc6 {[%clk 0:03:46.3]} 31... Kf5 {[%clk 0:00:59]} 32.
f4 {[%clk 0:03:40.9]} 32... g5 {[%clk 0:00:54.9]} 33. fxg5 {[%clk 0:03:34.5]}
33... fxg5 {[%clk 0:00:54.1]} 34. Kf2 {[%clk 0:03:31.8]} 34... gxh4 {[%clk
0:00:51.4]} 35. gxh4 {[%clk 0:03:30.6]} 35... Kg4 {[%clk 0:00:50.8]} 36. a5
{[%clk 0:03:23.3]} 36... Kxh4 {[%clk 0:00:49.7]} 37. Kf3 {[%clk 0:03:18.1]}
37... Kg5 {[%clk 0:00:48.7]} 38. Be4 {[%clk 0:03:09.1]} 38... Be6 {[%clk
0:00:23.1]} 39. Bb7 {[%clk 0:03:04.4]} 39... Bc4 {[%clk 0:00:21.8]} 40. Bc8
{[%clk 0:03:00.8]} 40... Bb5 {[%clk 0:00:18.3]} 41. Kg3 {[%clk 0:02:59.3]} 41...
Bc4 {[%clk 0:00:17.9]} 42. Bd7 {[%clk 0:02:55.6]} 42... Bd3 {[%clk 0:00:16.7]}
43. Be6 {[%clk 0:02:50.4]} 43... Be4 {[%clk 0:00:15.7]} 44. Bc4 {[%clk
0:02:48.6]} 44... Bb7 {[%clk 0:00:14.7]} 45. Bd3 {[%clk 0:02:45.9]} 45... Bd5
{[%clk 0:00:14]} 46. Bxa6 {[%clk 0:02:44.3]} 46... Be4 {[%clk 0:00:12.8]} 47.
Bc8 {[%clk 0:02:41.9]} 47... Bd5 {[%clk 0:00:12.1]} 48. a6 {[%clk 0:02:41.2]}
48... Ba8 {[%clk 0:00:11.4]} 49. Bb7 {[%clk 0:02:40.6]} 49... Bxb7 {[%clk
0:00:10.9]} 50. axb7 {[%clk 0:02:40.5]} 50... Kf5 {[%clk 0:00:09.7]} 51. b8=Q
{[%clk 0:02:40.4]} 1-0

[Event "Live Chess"]
[Site "Chess.com"]
[Date "2024.06.01"]
[Round "-"]
[White "CCGoodKnightRookie"]
[Black "FlyingChessKestrel13"]
[Result "1-0"]
[WhiteElo "2384"]
[BlackElo "2060"]
[TimeControl "300"]
[EndTime "14:38:13 PDT"]
[Termination "CCGoodKnightRookie won by resignation"]

1. d4 {[%clk 0:04:58.1]} 1... d5 {[%clk 0:04:54.8]} 2. Nc3 {[%clk 0:04:56.1]}
2... Nf6 {[%clk 0:04:53.7]} 3. Bf4 {[%clk 0:04:55.5]} 3... c6 {[%clk 0:04:52.6]}
4. e3 {[%clk 0:04:54.9]} 4... Bf5 {[%clk 0:04:51.2]} 5. Nf3 {[%clk 0:04:54.4]}
5... e6 {[%clk 0:04:50.4]} 6. Ne5 {[%clk 0:04:53.9]} 6... Bd6 {[%clk 0:04:48.9]}
7. g4 {[%clk 0:04:53.4]} 7... Bg6 {[%clk 0:04:47]} 8. h4 {[%clk 0:04:51.8]} 8...
h5 {[%clk 0:04:41.1]} 9. Nxg6 {[%clk 0:04:50.2]} 9... fxg6 {[%clk 0:04:40.4]}
10. Bd3 {[%clk 0:04:50.1]} 10... Nxg4 {[%clk 0:04:36.9]} 11. Bxg6+ {[%clk
0:04:48.4]} 11... Kd7 {[%clk 0:04:36.5]} 12. Bxd6 {[%clk 0:04:43]} 12... Kxd6
{[%clk 0:04:35.1]} 13. Qf3 {[%clk 0:04:35.4]} 13... Qf6 {[%clk 0:04:30.7]} 14.
Qg3+ {[%clk 0:04:34]} 14... Kd7 {[%clk 0:04:29.7]} 15. Bd3 {[%clk 0:04:32.1]}
15... Rf8 {[%clk 0:04:26.6]} 16. Nd1 {[%clk 0:04:23]} 16... Na6 {[%clk
0:04:23.8]} 17. c3 {[%clk 0:04:21.1]} 17... Nc7 {[%clk 0:04:22.7]} 18. Be2
{[%clk 0:04:17.1]} 18... Nh6 {[%clk 0:04:18.6]} 19. Bxh5 {[%clk 0:04:12.7]}
19... Nf5 {[%clk 0:04:17.1]} 20. Qg5 {[%clk 0:04:09.8]} 20... Qxg5 {[%clk
0:04:15.4]} 21. hxg5 {[%clk 0:04:08.3]} 21... Rh8 {[%clk 0:04:14.1]} 22. b3
{[%clk 0:03:48]} 22... g6 {[%clk 0:04:10]} 23. Bf3 {[%clk 0:03:45.7]} 23... Nh4
{[%clk 0:04:09.2]} 24. Rh3 {[%clk 0:03:22.6]} 24... Raf8 {[%clk 0:04:04.9]} 25.
Ke2 {[%clk 0:03:20.6]} 25... Nxf3 {[%clk 0:03:58.4]} 26. Rxf3 {[%clk 0:03:18.6]}
26... Rxf3 {[%clk 0:03:50.8]} 27. Kxf3 {[%clk 0:03:17]} 27... Rh5 {[%clk
0:03:50.2]} 28. Kg4 {[%clk 0:03:15.1]} 28... Ne8 {[%clk 0:03:45.5]} 29. Nb2
{[%clk 0:03:13.4]} 29... Rh2 {[%clk 0:03:41.5]} 30. Nd3 {[%clk 0:03:12]} 30...
Ke7 {[%clk 0:03:38.6]} 31. Kg3 {[%clk 0:03:10.1]} 31... Rh5 {[%clk 0:03:36]} 32.
f4 {[%clk 0:03:09.5]} 32... Nd6 {[%clk 0:03:32.1]} 33. Ne5 {[%clk 0:03:02.5]}
33... Ne4+ {[%clk 0:03:31]} 34. Kg2 {[%clk 0:02:58.1]} 34... Kd6 {[%clk
0:03:27.5]} 35. Nxg6 {[%clk 0:02:55.9]} 35... Nxg5 {[%clk 0:03:25.9]} 36. Ne5
{[%clk 0:02:41.6]} 36... Ne4 {[%clk 0:03:23.4]} 37. c4 {[%clk 0:02:38.4]} 37...
Rh7 {[%clk 0:03:17.8]} 38. c5+ {[%clk 0:02:37.2]} 38... Kc7 {[%clk 0:03:16.6]}
39. Ng4 {[%clk 0:02:25.1]} 39... Rg7 {[%clk 0:03:13.9]} 40. Kf3 {[%clk 0:02:24]}
40... Nd2+ {[%clk 0:03:12.6]} 41. Ke2 {[%clk 0:02:19.6]} 41... Rxg4 {[%clk
0:03:10.4]} 42. Kxd2 {[%clk 0:02:18.7]} 42... Rg2+ {[%clk 0:03:10]} 43. Kd3
{[%clk 0:02:17.6]} 43... b6 {[%clk 0:03:09.4]} 44. cxb6+ {[%clk 0:02:16]} 44...
axb6 {[%clk 0:03:06.5]} 45. b4 {[%clk 0:02:15.2]} 45... Kd6 {[%clk 0:03:05]} 46.
a4 {[%clk 0:02:12.9]} 46... Rg7 {[%clk 0:03:01.4]} 47. a5 {[%clk 0:02:12.2]}
47... bxa5 {[%clk 0:02:59.6]} 48. bxa5 {[%clk 0:02:11.8]} 48... Ra7 {[%clk
0:02:58.7]} 49. a6 {[%clk 0:02:09.3]} 49... c5 {[%clk 0:02:57.4]} 50. dxc5+
{[%clk 0:02:04.7]} 50... Kxc5 {[%clk 0:02:56.6]} 51. e4 {[%clk 0:02:03.6]} 51...
Kd6 {[%clk 0:02:43.9]} 52. Kd4 {[%clk 0:02:00.6]} 52... dxe4 {[%clk 0:02:39.3]}
53. Kxe4 {[%clk 0:01:59.3]} 53... Ke7 {[%clk 0:02:34.3]} 54. Ke5 {[%clk
0:01:57.8]} 54... Kf7 {[%clk 0:02:33.2]} 55. Kd6 {[%clk 0:01:44.1]} 55... Ke8
{[%clk 0:02:32.3]} 56. Kxe6 {[%clk 0:01:41.8]} 56... Re7+ {[%clk 0:02:31.2]} 57.
Kd5 {[%clk 0:01:40.4]} 57... Rd7+ {[%clk 0:02:30.7]} 58. Kc6 {[%clk 0:01:39.6]}
1-0

[Event "Live Chess"]
[Site "Chess.com"]
[Date "2024.06.01"]
[Round "-"]
[White "GrahamCuthbert"]
[Black "CheckThis4"]
[Result "0-1"]
[WhiteElo "1021"]
[BlackElo "2676"]
[TimeControl "300"]
[EndTime "14:38:21 PDT"]
[Termination "CheckThis4 won by resignation"]

1. d4 {[%clk 0:04:57.5]} 1... e5 {[%clk 0:04:56.8]} 2. dxe5 {[%clk 0:04:53.8]}
2... Nc6 {[%clk 0:04:55]} 3. Nf3 {[%clk 0:04:52.6]} 3... Qe7 {[%clk 0:04:49.9]}
4. Bf4 {[%clk 0:04:47]} 4... Qb4+ {[%clk 0:04:47.8]} 5. Bd2 {[%clk 0:04:40.8]}
5... Qxb2 {[%clk 0:04:43.4]} 6. Nc3 {[%clk 0:04:33.2]} 6... Nb4 {[%clk
0:04:27.3]} 7. Rb1 {[%clk 0:04:24.9]} 7... Nxc2+ {[%clk 0:04:25]} 8. Qxc2 {[%clk
0:04:15.2]} 8... Qxc2 {[%clk 0:04:24.9]} 9. Nd4 {[%clk 0:04:06]} 9... Qg6 {[%clk
0:04:21.5]} 10. e3 {[%clk 0:03:59.6]} 10... Bc5 {[%clk 0:04:15]} 11. Nf3 {[%clk
0:03:50.5]} 11... Ne7 {[%clk 0:04:11.7]} 12. g3 {[%clk 0:03:44.4]} 12... d6
{[%clk 0:04:07.2]} 13. Bg2 {[%clk 0:03:43]} 13... Nc6 {[%clk 0:04:02.9]} 14. O-O
{[%clk 0:03:33.2]} 14... dxe5 {[%clk 0:03:59.6]} 15. Nd5 {[%clk 0:03:26.1]}
15... Bd6 {[%clk 0:03:55.4]} 16. Nh4 {[%clk 0:03:12.2]} 16... Qe6 {[%clk
0:03:52.6]} 17. Rfc1 {[%clk 0:02:51]} 17... g5 {[%clk 0:03:47.9]} 18. Nf3 {[%clk
0:02:33.3]} 18... Qxd5 {[%clk 0:03:43.9]} 19. Ne1 {[%clk 0:02:24.9]} 19... Qxd2
{[%clk 0:03:37.6]} 20. Nf3 {[%clk 0:02:19.2]} 20... Qxa2 {[%clk 0:03:34.7]} 0-1

[Event "Live Chess"]
[Site "Chess.com"]
[Date "2024.06.01"]
[Round "-"]
[White "PughmanChess"]
[Black "lyricalschemes"]
[Result "0-1"]
[WhiteElo "1387"]
[BlackElo "2407"]
[TimeControl "300"]
[EndTime "14:38:21 PDT"]
[Termination "lyricalschemes won by resignation"]

1. e4 {[%clk 0:04:55.2]} 1... Nf6 {[%clk 0:04:59]} 2. e5 {[%clk 0:04:54.2]} 2...
Nd5 {[%clk 0:04:58.3]} 3. Nf3 {[%clk 0:04:53.5]} 3... d6 {[%clk 0:04:56.7]} 4.
exd6 {[%clk 0:04:51.5]} 4... cxd6 {[%clk 0:04:55.9]} 5. Bc4 {[%clk 0:04:50.9]}
5... Nb6 {[%clk 0:04:55.1]} 6. Bb3 {[%clk 0:04:49.9]} 6... g6 {[%clk 0:04:54.8]}
7. Ng5 {[%clk 0:04:47.8]} 7... e6 {[%clk 0:04:53.7]} 8. Qf3 {[%clk 0:04:45.1]}
8... Qxg5 {[%clk 0:04:52.2]} 9. d4 {[%clk 0:04:41.7]} 9... Qxc1+ {[%clk
0:04:50.5]} 10. Ke2 {[%clk 0:04:34.8]} 10... Qxh1 {[%clk 0:04:48.4]} 11. Qxf7+
{[%clk 0:04:30.8]} 11... Kxf7 {[%clk 0:04:47.3]} 12. Bxe6+ {[%clk 0:04:30.7]}
12... Bxe6 {[%clk 0:04:46.5]} 13. Nd2 {[%clk 0:04:29]} 13... Qxa1 {[%clk
0:04:46.4]} 0-1

[Event "Live Chess"]
[Site "Chess.com"]
[Date "2024.06.01"]
[Round "-"]
[White "IanCalvert2"]
[Black "WelshTiger"]
[Result "0-1"]
[WhiteElo "1642"]
[BlackElo "2517"]
[TimeControl "300"]
[EndTime "14:38:26 PDT"]
[Termination "WelshTiger won on time"]

1. b3 {[%clk 0:04:56.4]} 1... a6 {[%clk 0:04:55.7]} 2. Bb2 {[%clk 0:04:53.6]}
2... Nc6 {[%clk 0:04:55]} 3. Nf3 {[%clk 0:04:51.7]} 3... Nf6 {[%clk 0:04:49]} 4.
g3 {[%clk 0:04:39.8]} 4... d5 {[%clk 0:04:41.2]} 5. Bg2 {[%clk 0:04:35]} 5...
Bg4 {[%clk 0:04:34.7]} 6. O-O {[%clk 0:04:29.8]} 6... e6 {[%clk 0:04:33.4]} 7.
c4 {[%clk 0:04:16.3]} 7... Be7 {[%clk 0:04:30]} 8. Ne5 {[%clk 0:04:05.5]} 8...
Nxe5 {[%clk 0:04:25.7]} 9. Bxe5 {[%clk 0:04:00]} 9... c6 {[%clk 0:04:22]} 10. d3
{[%clk 0:03:54.3]} 10... O-O {[%clk 0:04:19.8]} 11. Nd2 {[%clk 0:03:50.1]} 11...
Nd7 {[%clk 0:04:16.2]} 12. Bc3 {[%clk 0:03:43.7]} 12... Bf6 {[%clk 0:04:14.4]}
13. Qc2 {[%clk 0:03:41.3]} 13... Rc8 {[%clk 0:04:08.7]} 14. Nf3 {[%clk
0:03:29.8]} 14... Bxf3 {[%clk 0:04:02]} 15. Bxf3 {[%clk 0:03:25.1]} 15... Bxc3
{[%clk 0:03:57.2]} 16. Qxc3 {[%clk 0:03:22.8]} 16... Qf6 {[%clk 0:03:57.1]} 17.
Qxf6 {[%clk 0:03:19.6]} 17... Nxf6 {[%clk 0:03:55.2]} 18. Rfc1 {[%clk 0:03:16]}
18... Rfe8 {[%clk 0:03:53.1]} 19. b4 {[%clk 0:03:01]} 19... dxc4 {[%clk
0:03:49.9]} 20. Rxc4 {[%clk 0:02:56]} 20... Red8 {[%clk 0:03:46.5]} 21. Rac1
{[%clk 0:02:48.6]} 21... Nd5 {[%clk 0:03:43]} 22. Bxd5 {[%clk 0:02:26.9]} 22...
Rxd5 {[%clk 0:03:33.2]} 23. Rc5 {[%clk 0:02:15.1]} 23... Rcd8 {[%clk 0:03:31.9]}
24. a3 {[%clk 0:01:53.3]} 24... Kf8 {[%clk 0:03:30.2]} 25. Kf1 {[%clk
0:01:44.9]} 25... Ke7 {[%clk 0:03:28.5]} 26. Ke1 {[%clk 0:01:43.1]} 26... e5
{[%clk 0:03:21.3]} 27. R1c4 {[%clk 0:01:02.8]} 27... Ke6 {[%clk 0:03:19.4]} 28.
Kd2 {[%clk 0:00:39.1]} 28... h6 {[%clk 0:03:15.9]} 29. Rxd5 {[%clk 0:00:23.2]}
29... Rxd5 {[%clk 0:03:14.4]} 30. Kc3 {[%clk 0:00:21]} 30... f5 {[%clk
0:02:50.9]} 31. Kb3 {[%clk 0:00:05.7]} 31... g5 {[%clk 0:02:43]} 0-1